[Event "*** Titled Tuesday Blitz"]
[Site "Chess.com"]
[Date "2021.02.09"]
[Round "3"]
[White "Nesty_Javi_Chess"]
[Black "Kotofeyca"]
[Result "0-1"]
[WhiteElo "2636"]
[BlackElo "2435"]
[TimeControl "180+1"]
[EndTime "10:28:58 PST"]
[Termination "Kotofeyca won on time"]

1. e4 {[%clk 0:02:16.6]} 1... c5 {[%clk 0:02:57.8]} 2. Nf3 {[%clk 0:02:16.4]}
2... d6 {[%clk 0:02:58.3]} 3. d4 {[%clk 0:02:16.8]} 3... cxd4 {[%clk 0:02:59.2]}
4. Nxd4 {[%clk 0:02:17.3]} 4... Nf6 {[%clk 0:02:59.9]} 5. Nc3 {[%clk 0:02:18]}
5... a6 {[%clk 0:03:00.4]} 6. Bc4 {[%clk 0:02:18.6]} 6... e6 {[%clk 0:03:00.4]}
7. Bb3 {[%clk 0:02:19.2]} 7... Nbd7 {[%clk 0:02:58.8]} 8. Bg5 {[%clk 0:02:19.5]}
8... Nc5 {[%clk 0:02:58.9]} 9. f4 {[%clk 0:02:19.9]} 9... Be7 {[%clk 0:02:55.3]}
10. Qe2 {[%clk 0:02:20]} 10... Qc7 {[%clk 0:02:51.3]} 11. O-O-O {[%clk
0:02:20.1]} 11... O-O {[%clk 0:02:42]} 12. Kb1 {[%clk 0:02:18.2]} 12... Nxb3
{[%clk 0:02:17.8]} 13. axb3 {[%clk 0:02:19.1]} 13... b5 {[%clk 0:02:17.7]} 14.
e5 {[%clk 0:02:17.8]} 14... Ne8 {[%clk 0:02:15.6]} 15. Bxe7 {[%clk 0:01:49.1]}
15... Qxe7 {[%clk 0:02:14.8]} 16. exd6 {[%clk 0:01:50]} 16... Nxd6 {[%clk
0:02:10.9]} 17. Nc6 {[%clk 0:01:46.3]} 17... Qc7 {[%clk 0:02:02.1]} 18. Qe5
{[%clk 0:01:46.2]} 18... Qxc6 {[%clk 0:01:56.3]} 19. Rxd6 {[%clk 0:01:45.9]}
19... Qxg2 {[%clk 0:01:46.4]} 20. Rdd1 {[%clk 0:01:39.6]} 20... f6 {[%clk
0:01:28.6]} 21. Qd6 {[%clk 0:01:20.4]} 21... Ra7 {[%clk 0:01:07.2]} 22. Rhg1
{[%clk 0:00:56.3]} 22... Qb7 {[%clk 0:01:02]} 23. Qd4 {[%clk 0:00:32.6]} 23...
Qd7 {[%clk 0:00:54.7]} 24. Qb6 {[%clk 0:00:18.4]} 24... Qc7 {[%clk 0:00:51.5]}
25. Qe3 {[%clk 0:00:19]} 25... Qe7 {[%clk 0:00:48.7]} 26. Ne4 {[%clk 0:00:18.6]}
26... Rd7 {[%clk 0:00:46.4]} 27. Rde1 {[%clk 0:00:16.7]} 27... Rfd8 {[%clk
0:00:42.9]} 28. Nc5 {[%clk 0:00:15.4]} 28... Rd6 {[%clk 0:00:39.4]} 29. b4
{[%clk 0:00:14.6]} 29... Rd4 {[%clk 0:00:28.2]} 30. c3 {[%clk 0:00:08.2]} 30...
Rd2 {[%clk 0:00:28]} 31. Qg3 {[%clk 0:00:05]} 31... e5 {[%clk 0:00:21.9]} 32.
fxe5 {[%clk 0:00:04.3]} 32... Bf5+ {[%clk 0:00:21.9]} 33. Ka1 {[%clk 0:00:04.5]}
33... Bg6 {[%clk 0:00:20]} 34. exf6 {[%clk 0:00:03.5]} 34... Qxf6 {[%clk
0:00:20]} 0-1

[Event "*** Titled Tuesday Blitz"]
[Site "Chess.com"]
[Date "2021.02.09"]
[Round "3"]
[White "exoticprincess"]
[Black "ENajer77"]
[Result "1-0"]
[WhiteElo "2849"]
[BlackElo "2618"]
[TimeControl "180+1"]
[EndTime "10:29:01 PST"]
[Termination "exoticprincess won by resignation"]

1. d4 {[%clk 0:03:00.6]} 1... Nf6 {[%clk 0:02:57.5]} 2. Nc3 {[%clk 0:03:01]}
2... d5 {[%clk 0:02:57]} 3. Bf4 {[%clk 0:03:01.1]} 3... Bf5 {[%clk 0:02:56.7]}
4. f3 {[%clk 0:03:01]} 4... e6 {[%clk 0:02:56.1]} 5. g4 {[%clk 0:03:00.5]} 5...
Bg6 {[%clk 0:02:56.3]} 6. h4 {[%clk 0:03:01]} 6... h5 {[%clk 0:02:56]} 7. g5
{[%clk 0:03:00.9]} 7... Nfd7 {[%clk 0:02:54.7]} 8. e3 {[%clk 0:03:01.4]} 8... a6
{[%clk 0:02:50.5]} 9. Bd3 {[%clk 0:03:00.4]} 9... Bxd3 {[%clk 0:02:49.8]} 10.
cxd3 {[%clk 0:03:01.3]} 10... c5 {[%clk 0:02:48.3]} 11. dxc5 {[%clk 0:02:59.3]}
11... Bxc5 {[%clk 0:02:47.8]} 12. d4 {[%clk 0:02:59.7]} 12... Be7 {[%clk
0:02:47.4]} 13. Nge2 {[%clk 0:03:00.3]} 13... Nc6 {[%clk 0:02:47.2]} 14. Rc1
{[%clk 0:02:57.8]} 14... Rc8 {[%clk 0:02:39.4]} 15. O-O {[%clk 0:02:57.1]} 15...
O-O {[%clk 0:02:31.2]} 16. Bg3 {[%clk 0:02:51.7]} 16... Nb6 {[%clk 0:02:27.1]}
17. b3 {[%clk 0:02:49.2]} 17... Ba3 {[%clk 0:02:25]} 18. Rc2 {[%clk 0:02:46.7]}
18... Bd6 {[%clk 0:02:16.9]} 19. Kg2 {[%clk 0:02:33.8]} 19... Ne7 {[%clk
0:02:12.9]} 20. Bf2 {[%clk 0:02:27.9]} 20... Ng6 {[%clk 0:02:09.1]} 21. Qd3
{[%clk 0:02:25.5]} 21... Nd7 {[%clk 0:02:06.7]} 22. e4 {[%clk 0:02:10.8]} 22...
dxe4 {[%clk 0:01:50.3]} 23. fxe4 {[%clk 0:02:11.7]} 23... Bb8 {[%clk 0:01:25.8]}
24. Qf3 {[%clk 0:01:56.6]} 24... b5 {[%clk 0:01:11.4]} 25. Rfc1 {[%clk
0:01:50.1]} 25... Bd6 {[%clk 0:01:00.9]} 26. Nd1 {[%clk 0:01:31.5]} 26... Rxc2
{[%clk 0:00:59.8]} 27. Rxc2 {[%clk 0:01:32.4]} 27... f5 {[%clk 0:00:19.1]} 28.
Qxh5 {[%clk 0:01:06.9]} 28... Qa8 {[%clk 0:00:18.4]} 29. d5 {[%clk 0:01:01.1]}
29... Nde5 {[%clk 0:00:18.1]} 30. Ne3 {[%clk 0:00:49.8]} 30... f4 {[%clk
0:00:17.3]} 31. Ng4 {[%clk 0:00:28.2]} 31... f3+ {[%clk 0:00:17.4]} 32. Kg1
{[%clk 0:00:27.5]} 32... fxe2 {[%clk 0:00:17.3]} 33. Nxe5 {[%clk 0:00:27.5]}
33... Nxe5 {[%clk 0:00:18]} 34. g6 {[%clk 0:00:27.6]} 34... Nxg6 {[%clk
0:00:16.5]} 35. Qxg6 {[%clk 0:00:28.5]} 35... Rf6 {[%clk 0:00:09.1]} 36. Qg4
{[%clk 0:00:26.1]} 36... exd5 {[%clk 0:00:09.3]} 37. Rc8+ {[%clk 0:00:25.4]}
37... Qxc8 {[%clk 0:00:08.1]} 38. Qxc8+ {[%clk 0:00:26.3]} 38... Kh7 {[%clk
0:00:08.5]} 39. exd5 {[%clk 0:00:18.8]} 39... Be5 {[%clk 0:00:05.7]} 40. Qc2+
{[%clk 0:00:18]} 1-0

[Event "*** Titled Tuesday Blitz"]
[Site "Chess.com"]
[Date "2021.02.09"]
[Round "3"]
[White "Hypercar"]
[Black "MarceloPlaya"]
[Result "1-0"]
[WhiteElo "2512"]
[BlackElo "2290"]
[TimeControl "180+1"]
[EndTime "10:29:01 PST"]
[Termination "Hypercar won on time"]

1. d4 {[%clk 0:03:00.9]} 1... e6 {[%clk 0:02:59.1]} 2. c4 {[%clk 0:02:45.8]}
2... Nf6 {[%clk 0:02:58.3]} 3. Nf3 {[%clk 0:02:45]} 3... Bb4+ {[%clk 0:02:57.5]}
4. Nbd2 {[%clk 0:02:44.5]} 4... O-O {[%clk 0:02:56.8]} 5. e3 {[%clk 0:02:44]}
5... b6 {[%clk 0:02:54.7]} 6. Be2 {[%clk 0:02:43.4]} 6... Bb7 {[%clk 0:02:54.7]}
7. O-O {[%clk 0:02:42.9]} 7... Ne4 {[%clk 0:02:46.6]} 8. a3 {[%clk 0:02:41.9]}
8... Bxd2 {[%clk 0:02:46.1]} 9. Nxd2 {[%clk 0:02:41.7]} 9... Nxd2 {[%clk
0:02:39.9]} 10. Qxd2 {[%clk 0:02:40.8]} 10... d6 {[%clk 0:02:37.3]} 11. f3
{[%clk 0:02:41]} 11... Nd7 {[%clk 0:02:35.3]} 12. b4 {[%clk 0:02:41.6]} 12... a5
{[%clk 0:02:30.3]} 13. Bb2 {[%clk 0:02:41.8]} 13... Qe7 {[%clk 0:02:29.2]} 14.
Bd3 {[%clk 0:02:36.1]} 14... e5 {[%clk 0:02:26.1]} 15. d5 {[%clk 0:02:09]} 15...
f5 {[%clk 0:01:57.7]} 16. Kh1 {[%clk 0:02:03.2]} 16... e4 {[%clk 0:01:43.3]} 17.
fxe4 {[%clk 0:01:51.7]} 17... fxe4 {[%clk 0:01:41.8]} 18. Bc2 {[%clk 0:01:51.4]}
18... Rxf1+ {[%clk 0:01:37.1]} 19. Rxf1 {[%clk 0:01:50.5]} 19... axb4 {[%clk
0:01:36.2]} 20. axb4 {[%clk 0:01:50]} 20... Rf8 {[%clk 0:01:32.9]} 21. Rxf8+
{[%clk 0:01:47.9]} 21... Kxf8 {[%clk 0:01:23.1]} 22. Qf2+ {[%clk 0:01:42.7]}
22... Nf6 {[%clk 0:01:21.5]} 23. Qf5 {[%clk 0:01:42.7]} 23... b5 {[%clk
0:01:15.7]} 24. cxb5 {[%clk 0:01:32.4]} 24... Bxd5 {[%clk 0:01:05]} 25. h3
{[%clk 0:01:32.7]} 25... Qe6 {[%clk 0:00:55.5]} 26. Qxe6 {[%clk 0:01:26.5]}
26... Bxe6 {[%clk 0:00:54.7]} 27. Bxf6 {[%clk 0:01:27.2]} 27... gxf6 {[%clk
0:00:54.7]} 28. Bxe4 {[%clk 0:01:27.9]} 28... Bc4 {[%clk 0:00:54.6]} 29. Bxh7
{[%clk 0:01:27.4]} 29... Bxb5 {[%clk 0:00:53.9]} 30. Kg1 {[%clk 0:01:27.5]}
30... Bd7 {[%clk 0:00:48.4]} 31. Bd3 {[%clk 0:01:26.3]} 31... c5 {[%clk
0:00:44.8]} 32. bxc5 {[%clk 0:01:24.4]} 32... dxc5 {[%clk 0:00:44.7]} 33. Kf2
{[%clk 0:01:24.9]} 33... Ke7 {[%clk 0:00:44.6]} 34. Kg3 {[%clk 0:01:24.7]} 34...
Kd6 {[%clk 0:00:43.3]} 35. Kf4 {[%clk 0:01:24.9]} 35... Kd5 {[%clk 0:00:43.1]}
36. g4 {[%clk 0:01:20.9]} 36... c4 {[%clk 0:00:42.6]} 37. Bc2 {[%clk 0:01:20.4]}
37... Kc5 {[%clk 0:00:38.8]} 38. h4 {[%clk 0:01:19.5]} 38... Kb4 {[%clk
0:00:34.9]} 39. h5 {[%clk 0:01:19.7]} 39... Ba4 {[%clk 0:00:33.6]} 40. Bxa4
{[%clk 0:01:09.6]} 40... Kxa4 {[%clk 0:00:33.1]} 41. h6 {[%clk 0:01:10.2]} 41...
c3 {[%clk 0:00:33.1]} 42. h7 {[%clk 0:01:10.9]} 42... c2 {[%clk 0:00:33.4]} 43.
h8=Q {[%clk 0:01:11.6]} 43... c1=Q {[%clk 0:00:33.4]} 44. Qa8+ {[%clk
0:01:09.4]} 44... Kb5 {[%clk 0:00:31.5]} 45. Qb7+ {[%clk 0:01:06.9]} 45... Ka5
{[%clk 0:00:30.1]} 46. Qd5+ {[%clk 0:01:01.8]} 46... Kb6 {[%clk 0:00:27.8]} 47.
Qd6+ {[%clk 0:01:00.1]} 47... Kb7 {[%clk 0:00:26.3]} 48. Qxf6 {[%clk 0:00:59.8]}
48... Qd2 {[%clk 0:00:20.9]} 49. Qe7+ {[%clk 0:00:55.1]} 49... Kc8 {[%clk
0:00:19.5]} 50. g5 {[%clk 0:00:55.1]} 50... Qf2+ {[%clk 0:00:18.1]} 51. Kg4
{[%clk 0:00:55.6]} 51... Qe2+ {[%clk 0:00:16.8]} 52. Kf5 {[%clk 0:00:54.4]}
52... Qd3+ {[%clk 0:00:16.4]} 53. Kf6 {[%clk 0:00:54.2]} 53... Qc3+ {[%clk
0:00:13.4]} 54. Kf7 {[%clk 0:00:54.2]} 1-0

[Event "*** Titled Tuesday Blitz"]
[Site "Chess.com"]
[Date "2021.02.09"]
[Round "3"]
[White "Brave_spirit12"]
[Black "poppy73"]
[Result "1-0"]
[WhiteElo "2483"]
[BlackElo "2226"]
[TimeControl "180+1"]
[EndTime "10:29:01 PST"]
[Termination "Brave_spirit12 won by resignation"]

1. e4 {[%clk 0:03:00.9]} 1... c5 {[%clk 0:02:58]} 2. c3 {[%clk 0:03:01.1]} 2...
Nf6 {[%clk 0:02:57.1]} 3. e5 {[%clk 0:03:01.4]} 3... Nd5 {[%clk 0:02:56.7]} 4.
d4 {[%clk 0:03:01.6]} 4... cxd4 {[%clk 0:02:57.3]} 5. cxd4 {[%clk 0:03:02.5]}
5... e6 {[%clk 0:02:57.7]} 6. Nf3 {[%clk 0:03:03]} 6... Nc6 {[%clk 0:02:56.2]}
7. Nc3 {[%clk 0:03:03.4]} 7... Nxc3 {[%clk 0:02:54]} 8. bxc3 {[%clk 0:03:04.3]}
8... d6 {[%clk 0:02:54.4]} 9. Bd3 {[%clk 0:03:04.6]} 9... dxe5 {[%clk 0:02:54]}
10. Nxe5 {[%clk 0:03:04]} 10... Nxe5 {[%clk 0:02:53.6]} 11. dxe5 {[%clk
0:03:04.9]} 11... Be7 {[%clk 0:02:51.8]} 12. O-O {[%clk 0:03:00.9]} 12... O-O
{[%clk 0:02:51.7]} 13. Qf3 {[%clk 0:02:57.9]} 13... Qc7 {[%clk 0:02:35]} 14. Bf4
{[%clk 0:02:56.2]} 14... Bd7 {[%clk 0:02:33.2]} 15. h4 {[%clk 0:02:53.8]} 15...
Bc6 {[%clk 0:02:31.3]} 16. Qg3 {[%clk 0:02:53.7]} 16... Rad8 {[%clk 0:02:24.7]}
17. Bh6 {[%clk 0:02:47.1]} 17... g6 {[%clk 0:02:06.3]} 18. Bxf8 {[%clk
0:02:45.7]} 18... Bxf8 {[%clk 0:02:04]} 19. Rfd1 {[%clk 0:02:45.4]} 19... Bg7
{[%clk 0:02:02.7]} 20. f4 {[%clk 0:02:45.3]} 20... h5 {[%clk 0:01:57.2]} 21. Be2
{[%clk 0:02:40.7]} 21... Bd5 {[%clk 0:01:25.6]} 22. c4 {[%clk 0:02:34.7]} 22...
Bxc4 {[%clk 0:01:25.1]} 23. Bxc4 {[%clk 0:02:10.8]} 23... Rxd1+ {[%clk
0:01:22.6]} 24. Rxd1 {[%clk 0:02:11.7]} 24... Qxc4 {[%clk 0:01:22]} 25. Qf2
{[%clk 0:02:06.3]} 25... Bf8 {[%clk 0:01:16.2]} 26. Kh2 {[%clk 0:01:58.3]} 26...
Bh6 {[%clk 0:01:07]} 27. g3 {[%clk 0:01:50.2]} 27... Bf8 {[%clk 0:00:58.1]} 28.
Rd2 {[%clk 0:01:32.7]} 28... Bc5 {[%clk 0:00:57.4]} 29. Rc2 {[%clk 0:01:25.2]}
29... Bxf2 {[%clk 0:00:48.2]} 30. Rxc4 {[%clk 0:01:24.3]} 30... b6 {[%clk
0:00:32.1]} 31. Rc8+ {[%clk 0:01:19.7]} 31... Kg7 {[%clk 0:00:31.7]} 32. Rc7
{[%clk 0:01:19.7]} 32... a5 {[%clk 0:00:31]} 33. Kg2 {[%clk 0:01:19.6]} 33...
Bc5 {[%clk 0:00:28.3]} 34. a4 {[%clk 0:01:19.9]} 34... Bd4 {[%clk 0:00:27.4]}
35. Kf3 {[%clk 0:01:19.6]} 35... Bc5 {[%clk 0:00:27.7]} 36. g4 {[%clk
0:01:19.6]} 36... hxg4+ {[%clk 0:00:26.6]} 37. Kxg4 {[%clk 0:01:19.7]} 37... Bf2
{[%clk 0:00:26.7]} 38. h5 {[%clk 0:01:18.9]} 38... gxh5+ {[%clk 0:00:26.1]} 39.
Kxh5 {[%clk 0:01:19.8]} 39... Be3 {[%clk 0:00:25.6]} 40. Kg4 {[%clk 0:01:20]}
40... Bf2 {[%clk 0:00:25.4]} 41. f5 {[%clk 0:01:19.8]} 41... exf5+ {[%clk
0:00:21.4]} 42. Kf3 {[%clk 0:01:11.8]} 42... Bc5 {[%clk 0:00:09.7]} 43. e6
{[%clk 0:01:11.7]} 43... Kf8 {[%clk 0:00:10.1]} 44. Rxf7+ {[%clk 0:01:11.1]}
44... Ke8 {[%clk 0:00:10.3]} 45. Kf4 {[%clk 0:01:10.8]} 45... Bd6+ {[%clk
0:00:07.2]} 46. Kxf5 {[%clk 0:01:10.8]} 46... Be7 {[%clk 0:00:07.6]} 47. Rh7
{[%clk 0:01:09]} 47... Bc5 {[%clk 0:00:06.3]} 48. Ke5 {[%clk 0:01:07.9]} 48...
Be7 {[%clk 0:00:05.7]} 49. Kd5 {[%clk 0:01:07.2]} 49... Bc5 {[%clk 0:00:05.2]}
50. Kc6 {[%clk 0:01:07.3]} 50... Bd4 {[%clk 0:00:04.6]} 51. Rb7 {[%clk 0:01:05]}
51... Bc5 {[%clk 0:00:04.2]} 52. Rxb6 {[%clk 0:01:01.2]} 52... Bxb6 {[%clk
0:00:04.4]} 53. Kxb6 {[%clk 0:01:02.1]} 53... Ke7 {[%clk 0:00:05]} 54. Kxa5
{[%clk 0:01:02.7]} 54... Kxe6 {[%clk 0:00:05.9]} 55. Kb6 {[%clk 0:01:03.3]}
55... Kd7 {[%clk 0:00:06]} 56. Kb7 {[%clk 0:01:03.8]} 56... Kd6 {[%clk
0:00:05.7]} 57. a5 {[%clk 0:01:04.7]} 1-0

[Event "*** Titled Tuesday Blitz"]
[Site "Chess.com"]
[Date "2021.02.09"]
[Round "3"]
[White "Anton_Demchenko"]
[Black "xberli"]
[Result "1-0"]
[WhiteElo "2858"]
[BlackElo "2464"]
[TimeControl "180+1"]
[EndTime "10:29:02 PST"]
[Termination "Anton_Demchenko won on time"]

1. e4 {[%clk 0:03:00.9]} 1... d5 {[%clk 0:02:54.2]} 2. exd5 {[%clk 0:02:59.7]}
2... c6 {[%clk 0:02:54.5]} 3. dxc6 {[%clk 0:02:58.3]} 3... Nxc6 {[%clk
0:02:55.4]} 4. Nf3 {[%clk 0:02:57.5]} 4... Nf6 {[%clk 0:02:54.3]} 5. d4 {[%clk
0:02:51.7]} 5... g6 {[%clk 0:02:52.3]} 6. Be2 {[%clk 0:02:49.8]} 6... Bg7 {[%clk
0:02:52.4]} 7. O-O {[%clk 0:02:50.4]} 7... O-O {[%clk 0:02:52.5]} 8. c3 {[%clk
0:02:48.7]} 8... Qc7 {[%clk 0:02:48.2]} 9. h3 {[%clk 0:02:31.5]} 9... Rd8 {[%clk
0:02:42.8]} 10. Be3 {[%clk 0:02:30.2]} 10... e5 {[%clk 0:02:39.4]} 11. Nbd2
{[%clk 0:02:29.7]} 11... h6 {[%clk 0:02:28]} 12. Nxe5 {[%clk 0:02:24.2]} 12...
Nxe5 {[%clk 0:02:26.8]} 13. dxe5 {[%clk 0:02:25.1]} 13... Nd5 {[%clk 0:02:13]}
14. Bd4 {[%clk 0:02:25]} 14... Nf4 {[%clk 0:02:03.5]} 15. Nf3 {[%clk 0:02:10.7]}
15... Bxh3 {[%clk 0:01:22.2]} 16. gxh3 {[%clk 0:01:44.8]} 16... Qc8 {[%clk
0:01:20.3]} 17. Ne1 {[%clk 0:01:40.4]} 17... Qxh3 {[%clk 0:01:17.2]} 18. Bg4
{[%clk 0:01:36.6]} 18... Qh4 {[%clk 0:01:08.3]} 19. Ng2 {[%clk 0:01:36.9]} 19...
Nxg2 {[%clk 0:00:42]} 20. Kxg2 {[%clk 0:01:36.9]} 20... h5 {[%clk 0:00:42.1]}
21. Bh3 {[%clk 0:01:13.1]} 21... Bxe5 {[%clk 0:00:35.9]} 22. Qf3 {[%clk
0:01:04.6]} 22... Qg5+ {[%clk 0:00:18.1]} 23. Kh1 {[%clk 0:01:04.1]} 23... Bxd4
{[%clk 0:00:18.3]} 24. cxd4 {[%clk 0:01:04.5]} 24... Rxd4 {[%clk 0:00:19.2]} 25.
Qg3 {[%clk 0:00:57.8]} 25... Qf6 {[%clk 0:00:15.3]} 26. Rad1 {[%clk 0:00:45.4]}
26... Rad8 {[%clk 0:00:14.1]} 27. Rxd4 {[%clk 0:00:42.5]} 27... Rxd4 {[%clk
0:00:13.6]} 28. a3 {[%clk 0:00:29.1]} 28... Rd2 {[%clk 0:00:08]} 29. b4 {[%clk
0:00:28.9]} 29... Rd4 {[%clk 0:00:04.8]} 30. Re1 {[%clk 0:00:26.6]} 30... Rf4
{[%clk 0:00:03.3]} 31. Kg1 {[%clk 0:00:26.5]} 31... Kg7 {[%clk 0:00:02.4]} 32.
Re3 {[%clk 0:00:24.2]} 32... h4 {[%clk 0:00:02.3]} 33. Qg2 {[%clk 0:00:18.9]}
33... Qa1+ {[%clk 0:00:02.1]} 34. Qf1 {[%clk 0:00:18.9]} 34... Qf6 {[%clk
0:00:02.1]} 35. Qe2 {[%clk 0:00:16]} 35... Qg5+ {[%clk 0:00:02.1]} 36. Kf1
{[%clk 0:00:15.7]} 36... Qf6 {[%clk 0:00:02.4]} 37. Re8 {[%clk 0:00:14.3]} 1-0

[Event "*** Titled Tuesday Blitz"]
[Site "Chess.com"]
[Date "2021.02.09"]
[Round "3"]
[White "esteban062000"]
[Black "ferdipy"]
[Result "0-1"]
[WhiteElo "2138"]
[BlackElo "2333"]
[TimeControl "180+1"]
[EndTime "10:29:04 PST"]
[Termination "ferdipy won by checkmate"]

1. Nf3 {[%clk 0:03:00.9]} 1... Nf6 {[%clk 0:02:48.6]} 2. c4 {[%clk 0:02:59.4]}
2... e6 {[%clk 0:02:48.5]} 3. g3 {[%clk 0:02:57.5]} 3... d5 {[%clk 0:02:48.6]}
4. b3 {[%clk 0:02:57.2]} 4... c6 {[%clk 0:02:48.3]} 5. Bg2 {[%clk 0:02:57.4]}
5... Be7 {[%clk 0:02:48.4]} 6. O-O {[%clk 0:02:57.2]} 6... O-O {[%clk
0:02:41.7]} 7. Bb2 {[%clk 0:02:57.4]} 7... Nbd7 {[%clk 0:02:40.2]} 8. d3 {[%clk
0:02:57.1]} 8... b6 {[%clk 0:02:31.4]} 9. Nbd2 {[%clk 0:02:56.1]} 9... Bb7
{[%clk 0:02:24.6]} 10. Rc1 {[%clk 0:02:54.8]} 10... Rc8 {[%clk 0:02:16.9]} 11.
cxd5 {[%clk 0:02:49.6]} 11... cxd5 {[%clk 0:02:16.7]} 12. Rxc8 {[%clk
0:02:47.1]} 12... Qxc8 {[%clk 0:02:16.2]} 13. Qa1 {[%clk 0:02:47.2]} 13... Qa8
{[%clk 0:02:13.3]} 14. Rc1 {[%clk 0:02:41.5]} 14... Rc8 {[%clk 0:02:12.4]} 15.
Nd4 {[%clk 0:02:40]} 15... Bf8 {[%clk 0:02:09.4]} 16. N2f3 {[%clk 0:02:30.3]}
16... e5 {[%clk 0:01:53.9]} 17. Nb5 {[%clk 0:02:27.2]} 17... e4 {[%clk
0:01:51.5]} 18. dxe4 {[%clk 0:02:07.9]} 18... dxe4 {[%clk 0:01:46.6]} 19. Ne5
{[%clk 0:01:53]} 19... e3 {[%clk 0:01:39]} 20. Rxc8 {[%clk 0:01:14.2]} 20...
exf2+ {[%clk 0:01:36.1]} 21. Kxf2 {[%clk 0:01:10.9]} 21... Qxc8 {[%clk 0:01:37]}
22. Nxa7 {[%clk 0:01:01.9]} 22... Qb8 {[%clk 0:01:27.7]} 23. Nxd7 {[%clk
0:00:52.9]} 23... Nxd7 {[%clk 0:01:27.1]} 24. Bxb7 {[%clk 0:00:52.1]} 24... Qxb7
{[%clk 0:01:26.3]} 25. Nb5 {[%clk 0:00:52]} 25... Nc5 {[%clk 0:01:24.2]} 26. Nc3
{[%clk 0:00:40.4]} 26... Qd7 {[%clk 0:01:19.5]} 27. Qd1 {[%clk 0:00:36.7]} 27...
Qf5+ {[%clk 0:01:18.6]} 28. Kg1 {[%clk 0:00:34.7]} 28... h5 {[%clk 0:01:14.5]}
29. Nd5 {[%clk 0:00:23]} 29... Ne4 {[%clk 0:01:11.7]} 30. Nf4 {[%clk 0:00:20.5]}
30... h4 {[%clk 0:01:10.5]} 31. Qd5 {[%clk 0:00:20.4]} 31... Qxd5 {[%clk
0:01:06.3]} 32. Nxd5 {[%clk 0:00:21.3]} 32... hxg3 {[%clk 0:01:07.1]} 33. hxg3
{[%clk 0:00:20.7]} 33... Nxg3 {[%clk 0:01:07.5]} 34. Kf2 {[%clk 0:00:21.1]}
34... Nf5 {[%clk 0:01:06.3]} 35. e4 {[%clk 0:00:20.5]} 35... Nh6 {[%clk
0:00:52.1]} 36. Nxb6 {[%clk 0:00:19.3]} 36... Bc5+ {[%clk 0:00:51.6]} 37. Kf3
{[%clk 0:00:17.1]} 37... Bxb6 {[%clk 0:00:51.6]} 38. a4 {[%clk 0:00:18]} 38...
f6 {[%clk 0:00:48.6]} 39. Bc3 {[%clk 0:00:18]} 39... Nf7 {[%clk 0:00:48.6]} 40.
b4 {[%clk 0:00:18.4]} 40... Ba7 {[%clk 0:00:49.4]} 41. a5 {[%clk 0:00:17.3]}
41... Ne5+ {[%clk 0:00:50.3]} 42. Bxe5 {[%clk 0:00:17.1]} 42... fxe5 {[%clk
0:00:50.6]} 43. Kg4 {[%clk 0:00:17.8]} 43... Bd4 {[%clk 0:00:48]} 44. Kf5 {[%clk
0:00:18.7]} 44... Bc3 {[%clk 0:00:48.5]} 45. a6 {[%clk 0:00:18.4]} 45... Bd4
{[%clk 0:00:47.2]} 46. b5 {[%clk 0:00:18.4]} 46... Kf7 {[%clk 0:00:47.4]} 47.
Kg4 {[%clk 0:00:16.6]} 47... Kf6 {[%clk 0:00:45.7]} 48. Kh5 {[%clk 0:00:16.8]}
48... g5 {[%clk 0:00:44.6]} 49. Kg4 {[%clk 0:00:17.7]} 49... Kg6 {[%clk
0:00:44.7]} 50. Kg3 {[%clk 0:00:17]} 50... Kh5 {[%clk 0:00:44.9]} 51. Kh3 {[%clk
0:00:17.5]} 51... g4+ {[%clk 0:00:45]} 52. Kg3 {[%clk 0:00:18.1]} 52... Kg5
{[%clk 0:00:45.5]} 53. Kg2 {[%clk 0:00:17.8]} 53... Kf4 {[%clk 0:00:45.7]} 54.
Kh2 {[%clk 0:00:17.5]} 54... g3+ {[%clk 0:00:45.7]} 55. Kg2 {[%clk 0:00:17.6]}
55... Kg4 {[%clk 0:00:45.8]} 56. Kh1 {[%clk 0:00:15.5]} 56... Kh3 {[%clk
0:00:44.3]} 57. b6 {[%clk 0:00:15.5]} 57... g2# {[%clk 0:00:44.8]} 0-1